bitfinex/quotes_ETHUSD_20250319
["timestamp","ask_amount","ask_price","bid_price","bid_amount"]
[1742402336054,4.89413,2043.3,2042.8,0.8198]
[1742402336344,4.89429,2043.2,2042.8,0.8198]
[1742402337016,0.05336043,2043.1,2042.8,9.8798]
[1742402337216,4.89429,2043.2,2042.8,9.8798]
[1742402337525,0.05119057,2043.0,2042.8,9.8798]
[1742402337729,4.89429,2043.2,2042.9,1.39401785]
[1742402339050,21.82397,2043.4,2042.9,1.39401785]
[1742402339251,4.89413,2043.3,2042.9,1.39401785]
[1742402340321,21.82384,2043.4,2042.9,1.39401785]
[1742402340830,4.89413,2043.3,2042.9,1.39401785]
[1742402341040,4.89413,2043.3,2043.0,1.12738179]
[1742402341445,16.93,2043.4,2043.0,1.12738179]
[1742402341646,3.55,2043.9,2043.1,4.83277849]
[1742402341647,0.8269,2043.9,2043.1,4.83277849]
[1742402341843,4.89129,2044.5,2043.4,0.7724]
[1742402341844,4.89287,2043.8,2043.4,0.7724]
[1742402342022,4.8926,2043.9,2043.4,3.7724]
[1742402342223,4.8926,2043.9,2043.5,0.69551866]
[1742402342640,4.89223,2044.1,2043.7,0.8079]
[1742402342847,4.89258,2044.0,2043.7,0.8079]
[1742402343545,4.89212,2044.2,2043.7,0.8079]
[1742402343935,9.78418,2044.2,2043.7,3.8079]
[1742402344146,4.89224,2044.1,2043.7,3.8079]
[1742402344324,4.89262,2043.9,2043.7,3.8079]
[1742402344523,4.8924,2044.0,2043.7,3.8079]
[1742402344827,10.76283,2044.1,2043.7,3.8079]
[1742402345021,4.8924,2044.0,2043.7,3.8079]
[1742402345424,0.97843,2044.1,2043.7,0.8079]
[1742402345425,4.89275,2043.9,2043.7,0.8079]
[1742402345925,4.89269,2043.9,2043.7,0.8079]
[1742402346132,4.89284,2043.8,2043.6,6.06]
[1742402346327,4.49121429,2043.7,2043.2,0.7711]
[1742402346520,4.89374,2043.5,2043.2,0.7711]
[1742402346746,9.78787,2043.4,2043.2,3.7711]
[1742402346945,4.89404,2043.3,2043.1,6.06]
[1742402347143,4.89452,2043.1,2042.9,6.06]
[1742402347461,4.895,2042.9,2042.8,0.7714]
[1742402347647,5.30541429,2043.1,2042.3,0.7714]
[1742402347848,4.89572,2042.6,2042.4,6.06]
[1742402348052,4.89585,2042.6,2042.3,0.7714]
[1742402348556,4.8953,2042.8,2042.3,1.95114]
[1742402348767,5.29761429,2043.3,2042.4,0.819]
[1742402348922,4.89461,2043.1,2042.6,0.819]
[1742402349122,4.89485,2043.0,2042.6,0.819]
[1742402349361,4.89461,2043.1,2042.6,0.819]
[1742402349532,4.89461,2043.1,2042.6,1.5069]
[1742402349730,9.86028,2043.2,2042.6,1.5069]
[1742402349948,9.85983,2043.4,2042.7,6.879]
[1742402350137,9.85983,2043.4,2042.8,3.819]
[1742402350452,4.89412,2043.3,2042.9,0.819]
[1742402350655,4.89294,2043.8,2043.1,0.7726]
[1742402350953,4.89294,2043.8,2043.3,0.7726]
[1742402351150,4.89294,2043.8,2043.3,0.82153415]
[1742402351349,4.8932,2043.7,2043.3,0.7726]
[1742402351734,4.89342,2043.6,2043.3,0.7726]
[1742402351931,4.89342,2043.6,2043.3,1.73241615]
[1742402352162,0.05055747,2043.5,2043.3,1.73241615]
[1742402352369,4.89357,2043.5,2043.3,0.7726]
[1742402352741,0.05042039,2043.4,2043.3,0.7726]
[1742402356971,4.94422039,2043.4,2043.3,0.7726]
[1742402357172,0.05042039,2043.4,2043.3,0.7726]
[1742402358145,4.89361,2043.5,2043.3,0.7726]
[1742402358340,0.05067504,2043.4,2043.3,0.7726]
[1742402360065,4.89322,2043.7,2043.3,0.7726]
[1742402360237,0.05067504,2043.4,2043.3,0.7726]
[1742402360439,9.78578,2043.8,2043.3,0.7726]
[1742402360755,9.78493,2044.0,2043.3,0.7726]
[1742402360958,9.78491,2044.0,2043.5,0.768]
[1742402361158,0.0513603,2043.9,2043.5,0.768]
[1742402361558,4.9439703,2043.9,2043.5,0.768]
[1742402361953,0.0513603,2043.9,2043.5,0.768]
[1742402362183,0.0513603,2043.9,2043.6,0.80582826]
[1742402362477,4.89216,2044.1,2043.6,0.7569]
[1742402362637,0.05122328,2043.8,2043.6,1.170316]
[1742402362838,9.78349,2044.3,2043.7,0.8156]
[1742402363265,9.8565,2044.4,2043.8,3.04892397]
[1742402363474,4.89174,2044.3,2043.9,0.8156]
[1742402364954,4.89069,2044.7,2044.0,3.8068]
[1742402365281,21.80857,2044.8,2044.2,0.8068]
[1742402365443,16.918,2044.8,2044.2,3.8068]
[1742402365644,5.71908,2045.0,2044.3,0.8068]
[1742402365843,4.88974,2045.1,2044.3,0.8068]
[1742402366140,4.88978,2045.1,2044.5,0.7535]
[1742402366346,4.89065,2044.8,2044.5,5.7175]
[1742402366679,4.89093,2044.6,2044.3,3.7967]
[1742402366845,5.71889,2044.8,2044.3,3.7967]
[1742402367047,4.89077,2044.7,2044.3,3.7967]
[1742402367444,4.89047,2044.8,2044.3,3.7967]
[1742402367649,9.78112,2044.8,2044.3,3.7967]
[1742402367848,9.78109,2044.8,2044.3,3.7967]
[1742402368168,4.89071,2044.7,2044.3,4.75575014]
[1742402368373,4.89071,2044.7,2044.3,3.7967]
[1742402369187,5.71838,2045.0,2044.3,3.7967]
[1742402369188,4.891,2044.6,2044.3,3.7967]
[1742402369590,4.89073,2044.7,2044.3,3.7967]
[1742402370089,4.89046,2044.8,2044.3,3.7967]
[1742402370289,4.89082,2044.7,2044.3,3.7967]
[1742402370495,4.89114,2044.6,2044.3,3.7967]
[1742402370668,9.78226,2044.6,2044.3,3.7967]
[1742402370867,4.89112,2044.6,2044.3,3.7967]
[1742402371068,4.89112,2044.6,2044.3,0.7967]
[1742402371268,4.89112,2044.6,2044.3,1.37277]
[1742402371465,4.89054,2044.8,2044.3,4.37277]
[1742402372071,4.89083,2044.7,2044.3,4.37277]
[1742402372597,4.89083,2044.7,2044.3,3.7967]
[1742402372772,4.89103,2044.6,2044.3,3.7967]
[1742402372971,9.78212,2044.6,2044.3,3.7967]
[1742402373489,4.89126,2044.5,2044.3,0.7967]
[1742402373860,4.89103,2044.6,2044.3,0.7967]
[1742402375093,9.78212,2044.6,2044.3,0.7967]
[1742402375306,4.89128,2044.5,2044.3,0.7967]
[1742402375457,4.89128,2044.5,2044.0,0.7989]
[1742402375458,4.89141,2044.4,2044.0,0.7989]
[1742402375664,4.89175,2044.3,2044.0,3.7989]
[1742402375858,4.89141,2044.4,2044.0,3.7989]
[1742402376093,4.89124,2044.5,2044.0,3.7989]
[1742402376279,9.78259,2044.5,2044.0,4.67499]
[1742402376485,4.89071,2044.7,2044.1,0.7853]
[1742402376893,4.89154,2044.4,2044.1,0.7853]
[1742402377097,4.89151,2044.4,2044.1,0.7853]
[1742402377604,9.78308,2044.4,2044.1,0.7853]
[1742402378506,4.89151,2044.4,2044.1,0.7853]
[1742402380106,9.78309,2044.4,2044.1,0.7853]
[1742402380475,4.89151,2044.4,2044.1,0.7853]
[1742402381007,4.89123,2044.5,2044.1,0.7853]
[1742402381223,4.95263657,2044.4,2044.1,0.7853]
[1742402381366,4.89188,2044.2,2044.1,0.7853]
[1742402381565,4.89167,2044.3,2044.1,0.7853]
[1742402381765,4.89188,2044.2,2044.1,0.7853]
[1742402382506,4.89167,2044.3,2043.9,0.7899]
[1742402382507,4.89236,2044.0,2043.9,0.7899]
[1742402382666,9.78441,2044.1,2043.9,0.7899]
[1742402382867,4.89212,2044.1,2043.9,0.7899]
[1742402383101,9.78443,2044.1,2043.9,0.7899]
[1742402383421,4.89212,2044.1,2043.7,3.7976]
[1742402384109,0.94337818,2044.1,2043.7,3.7976]
[1742402384268,4.89364,2043.5,2043.1,0.7976]
[1742402384611,4.89366,2043.5,2043.1,0.7976]
[1742402384907,4.89366,2043.5,2043.1,4.85009476]
[1742402385409,4.89335,2043.6,2043.2,3.0]
[1742402385613,4.89286,2043.8,2043.2,4.28120948]
[1742402385779,4.962,2043.9,2043.5,4.05249476]
[1742402385984,9.85461,2043.9,2043.5,4.05249476]
[1742402386295,4.89261,2043.9,2043.5,4.05249476]
[1742402386496,9.78535,2043.9,2043.5,4.05249476]
[1742402386808,9.78539,2043.9,2043.5,4.05249476]
[1742402387226,4.89261,2043.9,2043.5,4.05249476]
[1742402387434,9.78541,2043.9,2043.4,3.8322]
[1742402387733,4.89288,2043.8,2043.4,3.8322]
[1742402388027,4.89349,2043.6,2043.4,0.8322]
[1742402388434,4.8931,2043.7,2043.4,0.8322]
[1742402388934,4.89316,2043.7,2043.4,0.8322]
[1742402389515,4.89322,2043.7,2043.4,0.8322]
[1742402389735,0.94337818,2044.1,2043.4,1.71162]
[1742402389921,4.89246,2044.0,2043.5,4.05249476]
[1742402390122,4.89246,2044.0,2043.5,3.0]
[1742402390524,4.89263,2043.9,2043.5,3.0]
[1742402390924,4.89246,2044.0,2043.5,3.0]
[1742402391248,5.83555818,2044.1,2043.5,3.0]
[1742402391552,10.72785818,2044.1,2043.6,0.8015]
[1742402391722,5.83555818,2044.1,2043.6,0.8015]
[1742402392049,4.89218,2044.1,2043.6,0.8015]
[1742402392822,22.292057,2044.2,2043.7,3.04892848]
[1742402393334,4.89165,2044.3,2043.8,0.7953]
[1742402393537,4.89213,2044.1,2043.8,0.7953]
[1742402394014,4.89197,2044.2,2043.8,0.7953]
[1742402394410,8.94462476,2044.1,2043.8,0.7953]
[1742402394743,4.89236,2044.0,2043.8,0.7953]
[1742402395049,8.94462476,2044.1,2043.8,0.7953]
[1742402395363,10.32827824,2044.1,2043.8,0.7953]
[1742402396117,4.89244,2044.0,2043.8,0.7953]
[1742402396619,4.89236,2044.0,2043.7,3.0]
[1742402396811,4.89308,2043.7,2043.5,0.8294]
[1742402397038,4.89284,2043.8,2043.5,0.8294]
[1742402397754,8.94509476,2043.9,2043.5,0.8294]
[1742402398316,13.83788476,2043.9,2043.5,0.8294]
[1742402398517,4.89287,2043.8,2043.5,0.8294]
[1742402399856,8.94509476,2043.9,2043.5,0.8294]
[1742402400161,4.89285,2043.8,2043.5,0.8294]
[1742402400445,8.94509476,2043.9,2043.1,3.8085]
[1742402400446,4.89336,2043.6,2043.1,3.8085]
[1742402400651,8.94561476,2043.7,2043.2,3.0]
[1742402400839,4.05249476,2043.7,2043.3,0.7705]
[1742402401217,4.8929,2043.8,2043.3,0.7705]
[1742402401439,4.89315,2043.7,2043.3,0.7705]
[1742402401626,6.56889876,2043.8,2043.3,0.7705]
[1742402401829,1.67599876,2043.8,2043.3,0.7705]
[1742402402027,4.893,2043.8,2043.3,0.7705]
[1742402402240,8.94576476,2043.7,2043.3,0.7705]
[1742402402444,4.89334,2043.6,2043.3,0.7705]
[1742402403067,8.94576476,2043.7,2043.3,0.7705]
[1742402404332,13.83905476,2043.7,2043.3,0.7705]
[1742402404576,10.53971652,2043.7,2043.3,0.7705]
[1742402404758,4.89333,2043.6,2043.3,0.7705]
[1742402405476,4.05249476,2043.4,2043.1,0.7804]
[1742402405774,4.89418,2043.3,2043.1,0.7804]
[1742402406091,4.89418,2043.3,2042.8,4.962]
[1742402406092,4.89418,2043.3,2042.9,3.0]
[1742402406244,8.94686476,2043.2,2042.9,0.8154]
[1742402406788,4.05249476,2043.4,2043.0,0.8044]
[1742402406947,4.05249476,2043.6,2043.1,3.8044]
[1742402407166,8.94582476,2043.6,2043.1,3.8044]
[1742402407569,4.05249476,2043.6,2043.1,3.8044]
[1742402407878,4.05249476,2043.8,2043.2,0.8044]
[1742402408036,4.89276,2043.9,2043.4,0.8044]
[1742402408436,9.78555,2043.9,2043.4,0.8044]
[1742402408632,4.89276,2043.9,2043.4,0.8044]
[1742402408837,4.89294,2043.8,2043.4,0.8044]
[1742402409269,8.94543476,2043.8,2043.4,0.8044]
[1742402410080,4.05249476,2043.8,2043.4,0.8044]
[1742402410280,4.89269,2043.9,2043.4,0.8044]
[1742402410281,4.89269,2043.9,2043.4,1.25982182]
[1742402410451,4.89269,2043.9,2043.4,0.8044]
[1742402411051,4.89285,2043.8,2043.4,0.8044]
[1742402411475,8.94534476,2043.8,2043.4,0.8044]
[1742402412170,4.89268,2043.9,2043.4,0.8044]
[1742402414596,4.85179476,2044.1,2043.5,0.04893257]
[1742402414763,4.961,2044.2,2043.7,0.7594]
[1742402414764,4.89196,2044.2,2043.7,0.7594]
[1742402414965,4.8919,2044.2,2043.7,0.7594]
[1742402415777,4.89173,2044.3,2043.7,0.7594]
[1742402417099,9.78354,2044.3,2043.7,0.7594]
[1742402417330,4.89188,2044.2,2043.7,0.7594]
[1742402417621,4.89188,2044.2,2043.7,1.58964775]
[1742402417825,4.8917,2044.3,2043.7,1.58964775]
[1742402418193,4.8917,2044.3,2043.7,5.64214251]
[1742402418411,4.8917,2044.3,2043.7,4.88274251]
[1742402418615,4.8917,2044.3,2043.8,0.7793]
[1742402418925,9.78355,2044.3,2043.8,6.60650425]
[1742402419119,4.89193,2044.2,2043.8,6.60650425]
[1742402419486,4.89193,2044.2,2043.8,12.66650425]
[1742402421731,4.8917,2044.3,2043.8,12.66650425]
[1742402422230,9.78353,2044.3,2043.8,12.66650425]
[1742402422431,4.8917,2044.3,2043.8,12.66650425]
[1742402422594,4.8917,2044.3,2043.9,1.6718999]
[1742402423417,4.8917,2044.3,2043.9,4.6718999]
[1742402423623,9.78353,2044.3,2043.9,3.0]
[1742402424041,4.8917,2044.3,2043.9,3.0]
[1742402425059,4.89189,2044.2,2043.9,3.0]
[1742402425737,4.89165,2044.3,2043.9,3.0]
[1742402426139,4.89165,2044.3,2044.0,0.7957]
[1742402426335,12.453298,2044.3,2044.0,0.7957]
[1742402426538,4.89193,2044.2,2044.0,0.7957]
[1742402426741,4.89193,2044.2,2043.8,11.8167]
[1742402427049,4.89193,2044.2,2043.8,12.80195885]
[1742402427549,7.561458,2044.3,2043.8,11.8167]
[1742402427719,4.89165,2044.3,2043.8,11.8167]
[1742402429250,4.89189,2044.2,2043.8,11.8167]
[1742402430250,4.89191,2044.2,2043.8,11.8167]
[1742402431438,9.7835,2044.3,2043.8,11.8167]
[1742402431753,4.89168,2044.3,2043.8,15.86919476]
[1742402432050,4.89168,2044.3,2043.8,17.75611424]
[1742402432452,0.09506222,2044.2,2043.8,17.75611424]
[1742402432856,4.89141,2044.4,2043.9,0.7565]
[1742402433047,0.09480507,2044.1,2043.9,0.7565]
[1742402433357,4.89141,2044.4,2043.9,0.7565]
[1742402433559,4.89058,2044.8,2044.2,4.05249476]
[1742402433860,4.89069,2044.7,2044.3,0.8081]
[1742402434416,4.89118,2044.5,2044.3,0.8081]
[1742402434829,4.89187,2044.3,2044.1,0.8081]
[1742402435031,9.7837,2044.3,2044.0,6.06]
[1742402435449,4.89183,2044.3,2044.0,6.06]
[1742402435837,4.89149,2044.4,2044.0,6.06]
[1742402436155,4.89149,2044.4,2044.0,8.04362577]
[1742402436466,4.89169,2044.3,2044.0,6.06]
[1742402436871,9.7835,2044.3,2044.0,6.06]
[1742402437034,4.89189,2044.2,2044.0,6.06]
[1742402437778,4.89134,2044.5,2044.1,4.05249476]
[1742402437968,9.78205,2044.6,2044.2,0.7912]
[1742402438276,4.89121,2044.5,2044.2,3.7912]
[1742402438475,4.89095,2044.6,2044.2,5.48156948]
[1742402439078,4.89072,2044.7,2044.2,5.48156948]
[1742402439644,4.89054,2044.8,2044.2,5.48156948]
[1742402439840,4.89054,2044.8,2044.2,11.54156948]
[1742402440186,4.8907,2044.7,2044.2,11.54156948]
[1742402440750,4.89048,2044.8,2044.3,0.7708]
[1742402440951,4.89076,2044.7,2044.3,0.7708]
[1742402441383,7.559929,2044.8,2044.3,0.7708]
[1742402441585,4.89072,2044.7,2044.3,0.7708]
[1742402441773,4.89048,2044.8,2044.3,0.7708]
[1742402442251,0.08492893,2044.7,2044.3,0.7708]
[1742402442587,0.08492893,2044.7,2044.4,1.64781695]
[1742402442944,4.89047,2044.8,2044.4,1.64781695]
[1742402443151,0.08480443,2044.6,2044.3,9.8308]
[1742402443383,4.89047,2044.8,2044.3,9.8308]
[1742402443605,0.08467992,2044.5,2044.3,9.8308]
[1742402443759,4.89047,2044.8,2044.3,9.8308]
[1742402443961,0.08455539,2044.4,2044.3,9.8308]
[1742402444161,4.89047,2044.8,2044.3,11.88386642]
[1742402444361,0.08328446,2044.4,2044.3,11.88386642]
[1742402444583,4.89047,2044.8,2044.3,11.88386642]
[1742402444783,0.08353864,2044.4,2044.3,11.88386642]
[1742402445090,0.08350851,2044.4,2044.3,11.88386642]
[1742402445296,21.80423,2044.9,2044.3,11.88386642]
[1742402445453,0.08338797,2044.4,2044.3,11.88386642]
[1742402445655,21.80423,2044.9,2044.3,11.88386642]
[1742402445973,0.08335784,2044.4,2044.3,11.88386642]
[1742402446173,0.5448965,2045.5,2044.4,0.828]
[1742402446373,4.88969,2045.2,2044.7,0.828]
[1742402446547,11.16250548,2045.2,2044.7,0.828]
[1742402446751,4.88992,2045.1,2044.7,0.828]
[1742402446951,4.8899,2045.1,2044.7,0.828]
[1742402447182,4.88999,2045.0,2044.7,0.828]
[1742402447390,8.94263476,2045.0,2044.6,7.956]
[1742402447592,9.97521278,2045.0,2044.6,3.0]
[1742402447788,4.89033,2044.9,2044.6,3.0]
[1742402448004,8.94301476,2044.8,2044.5,11.844]
[1742402448180,8.94301476,2044.8,2044.5,6.888]
[1742402448364,8.94301476,2044.8,2044.3,5.784]
[1742402448365,4.89075,2044.7,2044.3,5.784]
[1742402448564,8.94350476,2044.6,2044.3,5.784]
[1742402448896,8.94350476,2044.6,2044.2,6.06]
[1742402448897,4.89141,2044.4,2044.2,6.06]
[1742402450079,4.89188,2044.2,2044.0,5.93171254]
[1742402450297,4.89188,2044.2,2044.0,0.97571254]
[1742402450593,4.89164,2044.3,2043.9,0.828]
[1742402450973,9.78348,2044.3,2043.9,3.828]
[1742402451298,4.89191,2044.2,2043.9,3.828]
[1742402452096,4.89167,2044.3,2043.9,3.828]
[1742402452297,4.89191,2044.2,2043.9,3.828]
[1742402452475,4.05249476,2044.4,2043.9,5.3123]
[1742402452679,4.89119,2044.5,2044.0,0.8163]
[1742402452875,10.32685024,2044.6,2044.0,0.8163]
[1742402453106,4.89156,2044.4,2044.0,0.8163]
[1742402453801,4.89122,2044.5,2044.0,0.8163]
[1742402454008,4.89122,2044.5,2044.0,4.95236]
[1742402454502,4.89141,2044.4,2044.0,4.95236]
[1742402454707,4.89141,2044.4,2044.0,11.01236]
[1742402454891,4.89122,2044.5,2044.0,11.01236]
[1742402455096,9.78259,2044.5,2044.0,11.01236]
[1742402455406,4.89122,2044.5,2044.1,1.65491548]
[1742402455597,4.89122,2044.5,2044.1,4.65491548]
[1742402455798,9.78254,2044.5,2044.1,3.0]
[1742402456120,9.78254,2044.5,2044.0,6.8763]
[1742402456121,4.89197,2044.2,2044.0,6.8763]
[1742402456603,9.78402,2044.2,2044.0,6.8763]
[1742402456806,4.89197,2044.2,2044.0,6.8763]
[1742402457305,0.07387697,2044.1,2044.0,6.8763]
[1742402457516,4.89197,2044.2,2044.0,6.8763]
[1742402457699,0.07387697,2044.1,2044.0,6.8763]
[1742402457900,4.8917,2044.3,2044.0,6.8763]
[1742402458111,0.07387389,2044.1,2044.0,6.8763]
[1742402458292,4.8917,2044.3,2044.0,6.8763]
[1742402458488,0.07387389,2044.1,2044.0,6.8763]
[1742402458819,4.8917,2044.3,2044.0,6.8763]
[1742402458991,0.07387389,2044.1,2044.0,6.8763]
[1742402459518,4.89174,2044.3,2044.0,6.8763]
[1742402459723,0.07432582,2044.1,2044.0,6.8763]
[1742402460016,4.89198,2044.2,2044.0,6.8763]
[1742402460220,0.07432582,2044.1,2044.0,6.8763]
[1742402460522,4.89198,2044.2,2044.0,6.8763]
[1742402460716,4.89144,2044.4,2044.0,6.8763]
[1742402460717,0.07458002,2044.1,2044.0,6.8763]
[1742402461018,4.89173,2044.3,2044.0,6.8763]
[1742402461316,5.381253,2044.2,2044.0,6.06]
[1742402461519,0.07401733,2044.2,2044.0,6.06]
[1742402462023,17.7354,2045.1,2044.2,0.7588]
[1742402462226,4.88966,2045.2,2044.6,3.0]
[1742402462441,0.07569975,2045.0,2044.6,3.0]
[1742402462642,4.88985,2045.1,2044.6,3.0]
[1742402462643,9.85281529,2045.1,2044.6,3.0]
[1742402462942,0.07291083,2045.0,2044.6,4.27662948]
[1742402463843,4.05249476,2044.8,2044.3,6.06]
[1742402464009,4.89127,2044.5,2044.3,6.06]
[1742402464207,4.89127,2044.5,2044.2,0.7823]
[1742402464427,0.07255109,2044.4,2044.2,0.7823]
[1742402465718,4.891,2044.6,2044.2,0.7823]
[1742402465920,0.07242655,2044.3,2044.2,2.20794734]
[1742402466155,4.891,2044.6,2044.2,2.20794734]
[1742402466342,0.07242655,2044.3,2044.2,2.20794734]
[1742402466545,4.891,2044.6,2044.2,2.20794734]
[1742402466845,0.07242655,2044.3,2044.2,0.7823]
[1742402467543,0.07269436,2044.3,2044.2,0.7823]
[1742402468245,4.89075,2044.7,2044.2,0.7823]
[1742402468434,9.78124,2044.8,2044.2,0.7823]
[1742402468635,8.94305476,2044.8,2044.2,0.7823]
[1742402468840,0.07324645,2044.7,2044.3,0.37823]
[1742402469047,9.85488645,2044.7,2044.2,0.7823]
[1742402469235,4.05249476,2044.6,2044.3,6.06]
[1742402469547,4.05249476,2044.6,2044.3,9.06]
[1742402469548,4.89141,2044.4,2044.3,9.06]
[1742402469744,4.89141,2044.4,2044.0,5.7198]
[1742402469745,4.89181,2044.3,2044.0,5.7198]
[1742402470049,4.05249476,2044.2,2043.8,3.7658]
[1742402470221,4.12511036,2044.2,2043.8,11.30378]
[1742402470549,0.0726156,2044.2,2043.8,11.30378]
[1742402470713,8.94395476,2044.4,2043.8,11.30378]
[1742402471043,0.07247026,2044.1,2043.8,11.30378]
[1742402471251,4.89175,2044.3,2043.8,11.30378]
[1742402471427,0.0721562,2044.0,2043.8,11.30378]
[1742402471612,4.89175,2044.3,2043.8,11.30378]
[1742402471818,0.07203163,2043.9,2043.8,11.30378]
[1742402472318,8.94395476,2044.4,2043.8,11.30378]
[1742402472518,0.07203163,2043.9,2043.8,11.30378]
[1742402472748,9.78351,2044.3,2043.8,9.8258]
[1742402473047,0.07203163,2043.9,2043.8,9.8258]
[1742402473250,4.89197,2044.2,2043.8,9.8258]
[1742402473751,0.07228076,2044.1,2043.8,9.8258]
[1742402473955,8.94486476,2044.0,2043.8,9.06]
[1742402474115,4.8926,2043.9,2043.6,0.8056]
[1742402474316,4.96452347,2043.9,2043.6,0.8056]
[1742402474718,4.89295,2043.8,2043.5,6.06]
[1742402474943,4.89308,2043.7,2043.5,6.06]
[1742402475143,0.07167429,2043.7,2043.5,6.06]
[1742402475831,8.94486476,2044.0,2043.5,6.06]
[1742402476149,4.89237,2044.0,2043.5,9.06]
[1742402476333,0.07193852,2043.9,2043.6,0.804]
[1742402477445,9.85739852,2043.9,2043.6,0.804]
[1742402477971,11.32538785,2043.9,2043.6,0.804]
[1742402478134,4.89287,2043.8,2043.6,0.804]
[1742402478457,4.9620145,2043.8,2043.5,9.06]
[1742402478853,5.02317985,2043.8,2043.5,9.06]
[1742402479052,4.18280461,2043.8,2043.5,6.06]
[1742402479255,4.89332,2043.6,2043.5,6.06]
[1742402479565,4.89384,2043.4,2043.2,3.0]
[1742402479946,0.06797627,2043.3,2043.2,3.0]
[1742402480145,4.89384,2043.4,2043.2,3.0]
[1742402480467,0.06797627,2043.3,2043.2,3.0]
[1742402481196,4.89395,2043.4,2043.2,3.0]
[1742402481370,0.06797627,2043.3,2043.2,3.0]
[1742402481533,4.89362,2043.5,2043.2,3.0]
[1742402481863,4.8926,2043.9,2043.4,4.05249476]
[1742402482065,5.68599,2044.0,2043.5,0.796]
[1742402482367,5.68599,2044.0,2043.5,3.796]
[1742402482569,10.57853,2044.0,2043.5,3.796]
[1742402482764,5.68599,2044.0,2043.5,3.796]
[1742402482938,4.89239,2044.0,2043.5,3.8449313]
[1742402483133,8.54146348,2044.0,2043.5,3.796]
[1742402483376,4.89262,2043.9,2043.5,3.796]
[1742402483665,4.89262,2043.9,2043.5,0.796]
[1742402483895,8.54146348,2044.0,2043.5,0.796]
[1742402483896,7.70156824,2044.0,2043.5,0.796]
[1742402484178,4.89299,2043.8,2043.5,3.796]
[1742402484464,4.89341,2043.6,2043.4,6.06]
[1742402484675,4.89316,2043.7,2043.4,6.06]
[1742402484839,4.89343,2043.6,2043.4,6.06]
[1742402485043,4.89309,2043.7,2043.4,6.06]
[1742402486082,4.89342,2043.6,2043.4,6.06]
[1742402486377,4.89356,2043.5,2043.4,6.06]
[1742402486580,5.99272706,2043.6,2043.4,6.06]
[1742402486745,1.09930706,2043.6,2043.4,6.06]
[1742402487078,4.89308,2043.7,2043.4,6.06]
[1742402487589,0.06423804,2043.6,2043.4,6.06]
[1742402487767,4.89308,2043.7,2043.4,6.06]
[1742402487964,4.95767339,2043.5,2043.4,6.06]
[1742402488172,4.89356,2043.5,2043.4,6.06]
[1742402488490,4.9553205,2043.5,2043.4,6.06]
[1742402488882,5.94020455,2043.5,2043.4,6.06]
[1742402489178,1.04664455,2043.5,2043.4,6.06]
[1742402489387,5.94020455,2043.5,2043.4,6.06]
[1742402489772,4.89383,2043.4,2043.2,11.97512352]
[1742402490296,0.06156945,2043.3,2043.2,11.97512352]
[1742402490694,4.89334,2043.6,2043.2,11.97512352]
[1742402490895,0.06156945,2043.3,2043.2,11.7677]
[1742402491188,4.89287,2043.8,2043.5,0.777]
[1742402491490,9.78592,2043.8,2043.5,0.777]
[1742402491697,9.78588,2043.8,2043.5,0.777]
[1742402491992,11.27257748,2043.8,2043.5,0.777]
[1742402492194,6.37956748,2043.8,2043.5,0.777]
[1742402492602,5.09263,2043.9,2043.5,0.777]
[1742402492774,4.89288,2043.8,2043.5,0.777]
[1742402493876,9.98541,2043.9,2043.5,0.777]
[1742402494078,5.09263,2043.9,2043.5,0.777]
[1742402494829,5.09274,2043.9,2043.5,0.777]
[1742402494969,9.98552,2043.9,2043.5,0.777]
[1742402495175,7.08252047,2043.9,2043.5,0.777]
[1742402495778,7.08241047,2043.9,2043.5,0.777]
[1742402496182,0.2,2043.9,2043.5,4.82949476]
[1742402497008,0.2,2043.9,2043.5,0.777]
[1742402497305,4.89318,2043.7,2043.5,0.777]
[1742402497478,4.89318,2043.7,2043.4,9.06]
[1742402497479,9.78647,2043.7,2043.4,9.06]
[1742402497810,9.78698,2043.6,2043.3,0.803]
[1742402498109,4.89301,2043.8,2043.3,0.803]
[1742402498476,4.893,2043.8,2043.3,0.803]
[1742402498676,14.92723476,2043.9,2043.3,0.803]
[1742402498677,10.03459476,2043.9,2043.3,0.803]
[1742402498903,4.89341,2043.6,2043.3,0.803]
[1742402500207,9.78694,2043.6,2043.3,0.803]
[1742402500413,4.89357,2043.5,2043.3,0.803]
[1742402501209,4.89339,2043.6,2043.3,0.803]
[1742402501412,9.78689,2043.6,2043.3,0.803]
[1742402502309,0.05765143,2043.5,2043.3,0.803]
[1742402502724,4.95122143,2043.5,2043.3,0.803]
[1742402504731,0.05765143,2043.5,2043.3,0.803]
[1742402505027,4.89388,2043.4,2043.2,6.06]
[1742402505227,4.95092808,2043.4,2043.2,6.06]
[1742402505692,0.05704808,2043.4,2043.2,6.06]
[1742402506320,4.89357,2043.5,2043.2,6.06]
[1742402506631,4.89339,2043.6,2043.2,6.06]
[1742402506805,0.05690155,2043.4,2043.2,6.06]
[1742402507007,4.89363,2043.5,2043.2,6.06]
[1742402507205,0.0567769,2043.3,2043.2,6.06]
[1742402507704,4.89339,2043.6,2043.2,6.06]
[1742402508034,0.05702618,2043.5,2043.2,6.06]
[1742402508408,4.95059618,2043.5,2043.2,6.06]
[1742402509014,0.05702618,2043.5,2043.2,6.06]
[1742402509424,4.95061618,2043.5,2043.2,6.06]
[1742402510498,0.05702618,2043.5,2043.2,6.06]
[1742402511534,0.05702618,2043.5,2043.4,7.05249476]